[Event "Prague Festival Futures 2024"]
[Site "Prague"]
[Date "2024.03.02"]
[Round "5.2"]
[White "Markina, Sofiia"]
[Black "Andre, Tomas"]
[Result "1-0"]
[ECO "C55"]
[WhiteElo "1680"]
[BlackElo "1829"]
[Annotator "NA RC"]
[PlyCount "135"]
[EventDate "2024.02.22"]
[EventType "tourn"]
[EventCountry "CZE"]
[SourceTitle "playchess.com"]
[Source "ChessBase"]
[SourceQuality "1"]
[TimeControl "40/5400+30:1800+30"]

1. e4 {[%emt 0:00:04]} e5 {[%emt 0:00:11]} 2. Nf3 {[%emt 0:00:08]} Nc6 {[%emt 0:00:07]} 3. Bc4 {[%emt 0:00:09]} Nf6 {[%emt 0:00:10]} 4. d3 {[%emt 0:00:17]} h6 {[%emt 0:00:13]} 5. Nbd2 {[%emt 0:00:28]} d6 {[%emt 0:00:14]} 6. c3 {[%emt 0:00:19]} g5 {[%emt 0:00:17]} 7. Nf1 {[%emt 0:01:27]} g4 {[%emt 0:00:25]} 8. N3d2 {[%emt 0:19:06]} h5 {[%emt 0:00:22]} 9. Ne3 {[%emt 0:01:16]} Bg7 {[%emt 0:00:40]} 10. Nf5 {[%emt 0:04:32]} Bxf5 {[%emt 0:01:05]} 11. exf5 {[%emt 0:00:03]} d5 {[%emt 0:01:02]} 12. Bb5 {[%emt 0:00:42]} a6 {[%emt 0:01:04]} 13. Bxc6+ {[%emt 0:01:17]} bxc6 {[%emt 0:00:02]} 14. Qe2 {[%emt 0:02:17]} O-O {[%emt 0:02:49]} 15. O-O {[%emt 0:00:37]} Re8 {[%emt 0:04:37]} 16. f3 {[%emt 0:09:48]} Qd6 {[%emt 0:11:37]} 17. fxg4 {[%emt 0:05:24]} hxg4 {[%emt 0:00:32]} 18. Nb3 {[%emt 0:06:20]} e4 {[%emt 0:01:33]} 19. d4 {[%emt 0:00:19]} e3 {[%emt 0:11:19]} 20. Nc5 {[%emt 0:02:24]} g3 {[%emt 0:12:51]} 21. h3 {[%emt 0:09:21]} Bh6 {[%emt 0:05:33]} 22. Rf3 {[%emt 0:05:32]} Ne4 {[%emt 0:12:14]} 23. Nb7 {[%emt 0:06:14]} Qf6 {[%emt 0:00:39]} 24. Bxe3 {[%emt 0:04:06]} Bxe3+ {[%emt 0:00:46]} 25. Rxe3 {[%emt 0:00:42]} Qxf5 {[%emt 0:00:36]} 26. Rf1 {[%emt 0:00:20]} Qg6 {[%emt 0:01:08]} 27. Nc5 {[%emt 0:03:31]} f5 {[%emt 0:01:02]} 28. Rff3 {[%emt 0:03:28]} f4 {[%emt 0:13:46]} 29. Rxf4 {[%emt 0:04:15]} Nf2 {[%emt 0:01:42]} 30. Rff3 {[%emt 0:04:13]} Rxe3 {[%emt 0:00:22]} 31. Rxe3 {[%emt 0:00:06]} Rf8 {[%emt 0:00:56]} 32. Nd3 {[%emt 0:03:23]} a5 {[%emt 0:02:58]} 33. a4 {[%emt 0:00:37]} Kh8 {[%emt 0:02:16]} 34. Rxg3 {[%emt 0:02:17]} Qxg3 {[%emt 0:01:52]} 35. Nxf2 {[%emt 0:00:03]} Qg6 {[%emt 0:06:22]} 36. Qe5+ {[%emt 0:00:47]} Qg7 {[%emt 0:00:43]} 37. Qxg7+ {[%emt 0:00:49]} Kxg7 {[%emt 0:00:02]} 38. Nd3 {[%emt 0:00:17]} Re8 {[%emt 0:01:42]} 39. Kf2 {[%emt 0:00:10]} Rb8 {[%emt 0:01:28]} 40. b4 {[%emt 0:00:34]} Ra8 {[%emt 0:00:48]} 41. Nc5 {[%emt 0:30:28]} axb4 {[%emt 0:30:55]} 42. cxb4 {[%emt 0:00:03]} Rb8 {[%emt 0:00:13]} 43. Nd3 {[%emt 0:00:18]} Kf6 {[%emt 0:00:30]} 44. g4 {[%emt 0:00:09]} c5 {[%emt 0:00:00]} 45. dxc5 {[%emt 0:00:00]} c6 {[%emt 0:00:00]} 46. Kg3 {[%emt 0:00:00]} Re8 {[%emt 0:00:00]} 47. Kf3 {[%emt 0:00:00]} Kg5 {[%emt 0:00:00]} 48. b5 {[%emt 0:00:00]} Ra8 {[%emt 0:00:00]} 49. b6 {[%emt 0:00:00]} Kf6 {[%emt 0:00:00]} 50. h4 {[%emt 0:00:00]} Ke6 {[%emt 0:00:00]} 51. h5 {[%emt 0:00:00]} Kd7 {[%emt 0:00:00]} 52. Ne5+ {[%emt 0:00:00]} Kc8 {[%emt 0:00:00]} 53. Nxc6 {[%emt 0:00:00]} Rxa4 {[%emt 0:00:00]} 54. Ne7+ {[%emt 0:00:00]} Kd7 {[%emt 0:00:00]} 55. Nxd5 {[%emt 0:00:00]} Kc6 {[%emt 0:00:00]} 56. Ne7+ {[%emt 0:00:00]} Kxc5 {[%emt 0:00:00]} 57. h6 {[%emt 0:00:00]} Kxb6 {[%emt 0:00:00]} 58. h7 {[%emt 0:00:00]} Ra3+ {[%emt 0:00:00]} 59. Kg2 {[%emt 0:00:00]} Ra2+ {[%emt 0:00:00]} 60. Kg3 {[%emt 0:00:00]} Ra3+ {[%emt 0:00:00]} 61. Kh4 {[%emt 0:00:00]} Ra1 {[%emt 0:00:00]} 62. Kg5 {[%emt 0:00:00]} Rh1 {[%emt 0:00:00]} 63. Kg6 {[%emt 0:00:00]} Rh4 {[%emt 0:00:00]} 64. g5 {[%emt 0:00:00]} Kc7 {[%emt 0:00:00]} 65. Nf5 {[%emt 0:00:00]} Ra4 {[%emt 0:00:00]} 66. h8=Q {[%emt 0:00:00]} Ra6+ {[%emt 0:00:00]} 67. Kh5 {[%emt 0:00:00]} Ra1 {[%emt 0:00:00]} 68. Qxa1 {[%emt 0:00:00]} 1-0

[Event "Prague Festival Futures 2024"]
[Site "Prague"]
[Date "2024.03.02"]
[Round "5.3"]
[White "Aansh Nandan Nerurkar"]
[Black "Peglau, Paul David"]
[Result "1-0"]
[ECO "C10"]
[WhiteElo "1891"]
[BlackElo "1764"]
[Annotator "NA RC"]
[PlyCount "91"]
[EventDate "2024.02.22"]
[EventType "tourn"]
[EventCountry "CZE"]
[SourceTitle "playchess.com"]
[Source "ChessBase"]
[SourceQuality "1"]
[TimeControl "40/5400+30:1800+30"]

1. e4 {[%emt 0:00:03]} e6 {[%emt 0:00:05]} 2. d4 {[%emt 0:00:06]} d5 {[%emt 0:00:05]} 3. Nd2 {[%emt 0:00:07]} dxe4 {[%emt 0:00:06]} 4. Nxe4 {[%emt 0:00:08]} Nd7 {[%emt 0:00:08]} 5. Nf3 {[%emt 0:00:09]} Ngf6 {[%emt 0:00:06]} 6. Nxf6+ {[%emt 0:00:06]} Nxf6 {[%emt 0:00:11]} 7. g3 {[%emt 0:00:05]} b6 {[%emt 0:00:44]} 8. Bb5+ {[%emt 0:00:12]} Bd7 {[%emt 0:00:45]} 9. a4 {[%emt 0:00:10]} a6 {[%emt 0:02:04]} 10. Be2 {[%emt 0:00:08]} Bd6 {[%emt 0:04:32]} 11. Ne5 {[%emt 0:01:44]} Bxe5 {[%emt 0:04:07]} 12. dxe5 {[%emt 0:00:11]} Bc6 {[%emt 0:01:36]} 13. Qxd8+ {[%emt 0:08:10]} Rxd8 {[%emt 0:00:40]} 14. O-O {[%emt 0:11:36]} Nd7 {[%emt 0:01:55]} 15. a5 {[%emt 0:02:23]} b5 {[%emt 0:05:55]} 16. f4 {[%emt 0:00:30]} Be4 {[%emt 0:05:50]} 17. c4 {[%emt 0:02:41]} c6 {[%emt 0:02:25]} 18. Be3 {[%emt 0:03:27]} f6 {[%emt 0:07:59]} 19. exf6 {[%emt 0:02:03]} gxf6 {[%emt 0:02:23]} 20. Rfd1 {[%emt 0:01:43]} Ke7 {[%emt 0:03:03]} 21. Rac1 {[%emt 0:04:34]} Rc8 {[%emt 0:06:39]} 22. Bd2 {[%emt 0:07:24]} Rhd8 {[%emt 0:05:48]} 23. cxb5 {[%emt 0:03:28]} cxb5 {[%emt 0:01:14]} 24. Bb4+ {[%emt 0:00:08]} Ke8 {[%emt 0:00:49]} 25. Bh5+ {[%emt 0:00:25]} Bg6 {[%emt 0:01:28]} 26. Bf3 {[%emt 0:02:25]} Rxc1 {[%emt 0:02:40]} 27. Rxc1 {[%emt 0:00:06]} Nb8 {[%emt 0:07:02]} 28. Rc7 {[%emt 0:06:09]} Rd7 {[%emt 0:02:26]} 29. Rc8+ {[%emt 0:00:40]} Rd8 {[%emt 0:00:10]} 30. Bb7 {[%emt 0:02:17]} Rxc8 {[%emt 0:06:56]} 31. Bxc8 {[%emt 0:00:02]} Nc6 {[%emt 0:06:19]} 32. Be1 {[%emt 0:01:34]} Nb8 {[%emt 0:05:00]} 33. Bxe6 {[%emt 0:00:22]} Bf7 {[%emt 0:00:39]} 34. Bf5 {[%emt 0:01:47]} Bg6 {[%emt 0:00:42]} 35. Be6 {[%emt 0:00:04]} Bf7 {[%emt 0:00:24]} 36. Bg4 {[%emt 0:00:17]} Bc4 {[%emt 0:03:15]} 37. Bf5 {[%emt 0:00:28]} h6 {[%emt 0:00:09]} 38. Bc3 {[%emt 0:00:26]} Kf7 {[%emt 0:00:20]} 39. Kf2 {[%emt 0:00:34]} Bd5 {[%emt 0:02:59]} 40. b4 {[%emt 0:05:21]} Be6 {[%emt 0:01:00]} 41. Be4 {[%emt 0:30:15]} Bd7 {[%emt 0:30:07]} 42. Ke3 {[%emt 0:02:11]} Bc6 {[%emt 0:00:06]} 43. f5 {[%emt 0:02:20]} Ke7 {[%emt 0:01:52]} 44. Bxc6 {[%emt 0:01:04]} Nxc6 {[%emt 0:00:01]} 45. Ke4 {[%emt 0:00:10]} Kd6 {[%emt 0:00:28]} 46. g4 {[%emt 0:00:19]} 1-0

[Event "Prague Festival Futures 2024"]
[Site "Prague"]
[Date "2024.03.02"]
[Round "5.4"]
[White "Guntaka, Aayansh R"]
[Black "Brzezina, Pawel"]
[Result "1/2-1/2"]
[ECO "C64"]
[WhiteElo "1651"]
[BlackElo "1834"]
[Annotator "NA RC"]
[PlyCount "69"]
[EventDate "2024.02.22"]
[EventType "tourn"]
[EventCountry "CZE"]
[SourceTitle "playchess.com"]
[Source "ChessBase"]
[SourceQuality "1"]
[TimeControl "40/5400+30:1800+30"]

1. e4 {[%emt 0:00:08]} e5 {[%emt 0:00:36]} 2. Nf3 {[%emt 0:00:17]} Nc6 {[%emt 0:01:14]} 3. Bb5 {[%emt 0:00:23]} a6 {[%emt 0:01:03]} 4. Ba4 {[%emt 0:00:08]} Bc5 {[%emt 0:01:18]} 5. c3 {[%emt 0:00:23]} Nge7 {[%emt 0:01:42]} 6. O-O {[%emt 0:02:37]} Ng6 {[%emt 0:01:02]} 7. d4 {[%emt 0:00:41]} Ba7 {[%emt 0:00:41]} 8. Bg5 {[%emt 0:02:53]} f6 {[%emt 0:00:37]} 9. Be3 {[%emt 0:00:22]} O-O {[%emt 0:00:22]} 10. d5 {[%emt 0:02:30]} Nce7 {[%emt 0:00:52]} 11. d6 {[%emt 0:01:02]} cxd6 {[%emt 0:02:08]} 12. Bxa7 {[%emt 0:00:52]} Rxa7 {[%emt 0:00:22]} 13. Qxd6 {[%emt 0:01:40]} b5 {[%emt 0:02:00]} 14. Bb3+ {[%emt 0:00:08]} Kh8 {[%emt 0:00:07]} 15. Rd1 {[%emt 0:03:22]} Bb7 {[%emt 0:11:57]} 16. Bc2 {[%emt 0:09:45]} Bc6 {[%emt 0:01:05]} 17. Nbd2 {[%emt 0:00:43]} Nc8 {[%emt 0:14:05]} 18. Qc5 {[%emt 0:02:51]} d6 {[%emt 0:02:04]} 19. Qe3 {[%emt 0:00:50]} Rd7 {[%emt 0:00:46]} 20. a4 {[%emt 0:02:35]} Nce7 {[%emt 0:07:15]} 21. axb5 {[%emt 0:00:27]} axb5 {[%emt 0:00:34]} 22. Nf1 {[%emt 0:06:47]} Nf4 {[%emt 0:10:08]} 23. Ng3 {[%emt 0:01:25]} d5 {[%emt 0:05:31]} 24. h3 {[%emt 0:03:18]} Neg6 {[%emt 0:04:14]} 25. Bb3 {[%emt 0:15:47]} dxe4 {[%emt 0:04:37]} 26. Nxe4 {[%emt 0:00:34]} Rxd1+ {[%emt 0:03:37]} 27. Rxd1 {[%emt 0:00:15]} Qa8 {[%emt 0:00:16]} 28. Re1 {[%emt 0:26:30]} f5 {[%emt 0:08:09]} 29. Neg5 {[%emt 0:00:09]} Nxg2 {[%emt 0:00:13]} 30. Kxg2 {[%emt 0:00:10]} Bxf3+ {[%emt 0:03:13]} 31. Kh2 {[%emt 0:02:53]} Bd5 {[%emt 0:05:46]} 32. Bxd5 {[%emt 0:01:27]} Qxd5 {[%emt 0:00:06]} 33. Rg1 {[%emt 0:01:36]} e4 {[%emt 0:03:37]} 34. Qb6 {[%emt 0:04:35]} Qe5+ {[%emt 0:01:32]} 35. Kh1 {[%emt 0:00:15]} 1/2-1/2

[Event "Prague Festival Futures 2024"]
[Site "Prague"]
[Date "2024.03.02"]
[Round "5.5"]
[White "Mrozowski, Nikodem"]
[Black "Stara, Zuzana"]
[Result "1/2-1/2"]
[ECO "B15"]
[WhiteElo "1527"]
[BlackElo "1674"]
[Annotator "NA RC"]
[PlyCount "97"]
[EventDate "2024.02.22"]
[EventType "tourn"]
[EventCountry "CZE"]
[SourceTitle "playchess.com"]
[Source "ChessBase"]
[SourceQuality "1"]
[TimeControl "40/5400+30:1800+30"]

1. e4 {[%emt 0:00:19]} c6 {[%emt 0:00:03]} 2. d4 {[%emt 0:00:29]} d5 {[%emt 0:00:05]} 3. Nd2 {[%emt 0:00:11]} dxe4 {[%emt 0:00:05]} 4. Nxe4 {[%emt 0:00:09]} Nf6 {[%emt 0:00:04]} 5. Nxf6+ {[%emt 0:00:20]} exf6 {[%emt 0:00:05]} 6. Be3 {[%emt 0:00:21]} Bd6 {[%emt 0:00:17]} 7. Bd3 {[%emt 0:00:44]} O-O {[%emt 0:07:11]} 8. Ne2 {[%emt 0:00:14]} Re8 {[%emt 0:03:00]} 9. O-O {[%emt 0:03:15]} Bg4 {[%emt 0:01:03]} 10. c4 {[%emt 0:01:01]} Bc7 {[%emt 0:01:42]} 11. Qc2 {[%emt 0:01:54]} h6 {[%emt 0:01:43]} 12. h3 {[%emt 0:03:58]} Be6 {[%emt 0:01:22]} 13. Rad1 {[%emt 0:02:26]} a5 {[%emt 0:09:16]} 14. d5 {[%emt 0:05:13]} cxd5 {[%emt 0:28:35]} 15. cxd5 {[%emt 0:00:16]} Bc8 {[%emt 0:23:24]} 16. Rc1 {[%emt 0:16:35]} Bd6 {[%emt 0:01:10]} 17. Rfd1 {[%emt 0:01:45]} Nd7 {[%emt 0:00:41]} 18. Bb5 {[%emt 0:01:37]} Rf8 {[%emt 0:04:40]} 19. Nc3 {[%emt 0:06:24]} Ne5 {[%emt 0:01:30]} 20. Na4 {[%emt 0:01:32]} Qe7 {[%emt 0:02:08]} 21. Nb6 {[%emt 0:01:56]} Rb8 {[%emt 0:05:28]} 22. Nxc8 {[%emt 0:02:04]} Rbxc8 {[%emt 0:00:15]} 23. Qxc8 {[%emt 0:00:07]} Rxc8 {[%emt 0:00:07]} 24. Rxc8+ {[%emt 0:00:06]} Kh7 {[%emt 0:00:02]} 25. Rdc1 {[%emt 0:00:17]} f5 {[%emt 0:00:51]} 26. g3 {[%emt 0:02:28]} Nf3+ {[%emt 0:00:29]} 27. Kf1 {[%emt 0:05:48]} Qe4 {[%emt 0:01:34]} 28. Rd1 {[%emt 0:09:11]} Ne5 {[%emt 0:04:15]} 29. Kg1 {[%emt 0:00:33]} Nf3+ {[%emt 0:00:43]} 30. Kf1 {[%emt 0:00:05]} Ne5 {[%emt 0:00:03]} 31. Kg1 {[%emt 0:00:11]} Qf3 {[%emt 0:01:56]} 32. Rcc1 {[%emt 0:00:54]} Ng6 {[%emt 0:00:53]} 33. Bf1 {[%emt 0:00:10]} Qe4 {[%emt 0:00:31]} 34. Bg2 {[%emt 0:00:24]} Qe7 {[%emt 0:00:46]} 35. Re1 {[%emt 0:00:36]} Qd7 {[%emt 0:00:00]} 36. f4 {[%emt 0:00:48]} Ne7 {[%emt 0:00:30]} 37. Rcd1 {[%emt 0:01:18]} Qb5 {[%emt 0:00:32]} 38. b3 {[%emt 0:01:27]} a4 {[%emt 0:01:20]} 39. bxa4 {[%emt 0:03:59]} Qxa4 {[%emt 0:00:08]} 40. Rb1 {[%emt 0:00:32]} Qxa2 {[%emt 0:01:11]} 41. Rxb7 {[%emt 0:30:51]} Nxd5 {[%emt 0:09:57]} 42. Bxd5 {[%emt 0:00:00]} Qxd5 {[%emt 0:00:47]} 43. Rb2 {[%emt 0:00:00]} Ba3 {[%emt 0:10:01]} 44. Rg2 {[%emt 0:00:00]} Bc5 {[%emt 0:03:49]} 45. Bxc5 {[%emt 0:00:00]} Qxc5+ {[%emt 0:00:01]} 46. Kh2 {[%emt 0:00:00]} Qd4 {[%emt 0:02:09]} 47. h4 {[%emt 0:00:00]} Kg6 {[%emt 0:00:54]} 48. Rge2 {[%emt 0:00:00]} f6 {[%emt 0:00:11]} 49. Kg2 {[%emt 0:00:00]} 1/2-1/2

[Event "Prague Festival Futures 2024"]
[Site "Prague"]
[Date "2024.03.04"]
[Round "6.1"]
[White "Siskou, Evangelia"]
[Black "Stara, Zuzana"]
[Result "1-0"]
[ECO "B50"]
[WhiteElo "1680"]
[BlackElo "1674"]
[Annotator "NA RC"]
[PlyCount "169"]
[EventDate "2024.02.22"]
[EventType "tourn"]
[EventCountry "CZE"]
[SourceTitle "playchess.com"]
[Source "ChessBase"]
[SourceQuality "1"]
[TimeControl "40/5400+30:1800+30"]

1. e4 {[%emt 0:00:40]} c5 {[%emt 0:00:02]} 2. Nf3 {[%emt 0:00:25]} d6 {[%emt 0:00:04]} 3. Bb5+ {[%emt 0:00:20]} Bd7 {[%emt 0:00:04]} 4. Bxd7+ {[%emt 0:00:21]} Nxd7 {[%emt 0:00:01]} 5. O-O {[%emt 0:00:34]} Ngf6 {[%emt 0:00:03]} 6. Qe2 {[%emt 0:00:30]} e6 {[%emt 0:00:05]} 7. b3 {[%emt 0:00:24]} g6 {[%emt 0:02:11]} 8. Bb2 {[%emt 0:01:11]} Bg7 {[%emt 0:00:03]} 9. d4 {[%emt 0:01:22]} cxd4 {[%emt 0:03:25]} 10. Nxd4 {[%emt 0:01:43]} a6 {[%emt 0:01:06]} 11. c4 {[%emt 0:04:05]} O-O {[%emt 0:01:01]} 12. Nc3 {[%emt 0:01:26]} Rc8 {[%emt 0:01:37]} 13. Rad1 {[%emt 0:00:58]} Qb6 {[%emt 0:02:25]} 14. Kh1 {[%emt 0:03:07]} Rfe8 {[%emt 0:03:22]} 15. Qd2 {[%emt 0:09:40]} Nc5 {[%emt 0:05:51]} 16. Rfe1 {[%emt 0:05:43]} Red8 {[%emt 0:04:08]} 17. f3 {[%emt 0:08:31]} Qc7 {[%emt 0:08:23]} 18. Qf2 {[%emt 0:02:16]} Rb8 {[%emt 0:25:09]} 19. f4 {[%emt 0:09:12]} e5 {[%emt 0:28:52]} 20. Nc2 {[%emt 0:09:39]} Qc6 {[%emt 0:00:50]} 21. Qf3 {[%emt 0:14:36]} Re8 {[%emt 0:05:21]} 22. Nb4 {[%emt 0:03:27]} Qc7 {[%emt 0:03:35]} 23. Nbd5 {[%emt 0:02:39]} Nxd5 {[%emt 0:01:47]} 24. Nxd5 {[%emt 0:00:02]} Qc6 {[%emt 0:00:18]} 25. f5 {[%emt 0:02:56]} Rbd8 {[%emt 0:00:42]} 26. f6 {[%emt 0:00:43]} Bf8 {[%emt 0:00:13]} 27. Qg4 {[%emt 0:01:37]} Qd7 {[%emt 0:01:15]} 28. Qh4 {[%emt 0:00:30]} Qe6 {[%emt 0:01:43]} 29. Nc7 {[%emt 0:00:22]} Qd7 {[%emt 0:00:16]} 30. Nxe8 {[%emt 0:00:18]} Rxe8 {[%emt 0:00:03]} 31. Re3 {[%emt 0:02:51]} h5 {[%emt 0:00:40]} 32. Rg3 {[%emt 0:02:20]} Kh7 {[%emt 0:00:04]} 33. b4 {[%emt 0:02:07]} Qa4 {[%emt 0:00:48]} 34. Rc1 {[%emt 0:06:08]} Qxb4 {[%emt 0:00:41]} 35. Ba3 {[%emt 0:00:35]} Qd2 {[%emt 0:00:50]} 36. Rgc3 {[%emt 0:01:48]} Nd3 {[%emt 0:00:38]} 37. R3c2 {[%emt 0:00:02]} Qe3 {[%emt 0:00:20]} 38. Rd1 {[%emt 0:01:26]} Nf4 {[%emt 0:00:40]} 39. Bc1 {[%emt 0:02:34]} Qxe4 {[%emt 0:00:08]} 40. Rb2 {[%emt 0:00:41]} b5 {[%emt 0:00:55]} 41. Bxf4 {[%emt 0:01:45]} exf4 {[%emt 0:00:08]} 42. cxb5 {[%emt 0:01:22]} axb5 {[%emt 0:19:06]} 43. h3 {[%emt 0:05:18]} b4 {[%emt 0:01:39]} 44. Rbd2 {[%emt 0:06:25]} Ra8 {[%emt 0:04:29]} 45. Qf2 {[%emt 0:03:13]} Qe5 {[%emt 0:04:55]} 46. Rd4 {[%emt 0:07:04]} Qe6 {[%emt 0:01:26]} 47. R1d2 {[%emt 0:00:52]} b3 {[%emt 0:01:21]} 48. axb3 {[%emt 0:02:12]} Qxb3 {[%emt 0:00:42]} 49. R2d3 {[%emt 0:01:14]} Ra1+ {[%emt 0:00:41]} 50. Kh2 {[%emt 0:00:04]} Qb1 {[%emt 0:00:24]} 51. Rd1 {[%emt 0:00:47]} Qxd1 {[%emt 0:00:44]} 52. Rxd1 {[%emt 0:00:02]} Rxd1 {[%emt 0:00:08]} 53. Qe2 {[%emt 0:00:11]} Ra1 {[%emt 0:00:56]} 54. Qb2 {[%emt 0:00:23]} Ra8 {[%emt 0:00:39]} 55. Qb7 {[%emt 0:00:09]} Rd8 {[%emt 0:00:20]} 56. Qxf7+ {[%emt 0:00:08]} Kh6 {[%emt 0:00:09]} 57. Qc7 {[%emt 0:01:30]} Re8 {[%emt 0:00:34]} 58. Qd7 {[%emt 0:00:41]} Rb8 {[%emt 0:00:31]} 59. Qa7 {[%emt 0:01:21]} Rd8 {[%emt 0:00:36]} 60. Qb6 {[%emt 0:01:09]} Re8 {[%emt 0:00:24]} 61. Qc7 {[%emt 0:02:24]} Ra8 {[%emt 0:00:30]} 62. Qc4 {[%emt 0:01:48]} g5 {[%emt 0:00:43]} 63. h4 {[%emt 0:00:28]} Rd8 {[%emt 0:00:37]} 64. Qc7 {[%emt 0:00:32]} Re8 {[%emt 0:00:18]} 65. Qd7 {[%emt 0:01:12]} Rb8 {[%emt 0:00:18]} 66. Qa7 {[%emt 0:00:29]} Re8 {[%emt 0:00:17]} 67. Qd4 {[%emt 0:00:48]} Rd8 {[%emt 0:00:31]} 68. Qb6 {[%emt 0:00:29]} Ra8 {[%emt 0:00:59]} 69. Qc6 {[%emt 0:00:35]} Rd8 {[%emt 0:00:13]} 70. Qc7 {[%emt 0:00:28]} Re8 {[%emt 0:00:54]} 71. Qf7 {[%emt 0:00:25]} Rd8 {[%emt 0:00:22]} 72. Qg8 {[%emt 0:00:33]} gxh4 {[%emt 0:00:28]} 73. Kh3 {[%emt 0:00:27]} Rb8 {[%emt 0:00:36]} 74. Kxh4 {[%emt 0:00:13]} f3 {[%emt 0:00:38]} 75. Qg5+ {[%emt 0:00:25]} Kh7 {[%emt 0:00:05]} 76. gxf3 {[%emt 0:00:41]} Rb4+ {[%emt 0:00:51]} 77. f4 {[%emt 0:00:43]} Rb8 {[%emt 0:00:15]} 78. Kxh5 {[%emt 0:00:16]} Rb2 {[%emt 0:00:40]} 79. Qg6+ {[%emt 0:00:32]} Kh8 {[%emt 0:00:03]} 80. Qg3 {[%emt 0:00:22]} Rb7 {[%emt 0:00:39]} 81. Kg6 {[%emt 0:00:43]} Rh7 {[%emt 0:00:32]} 82. Qc3 {[%emt 0:00:27]} Kg8 {[%emt 0:00:49]} 83. Qc4+ {[%emt 0:00:01]} Kh8 {[%emt 0:00:11]} 84. f5 {[%emt 0:00:54]} Rh1 {[%emt 0:00:48]} 85. Kf7 {[%emt 0:00:19]} 1-0

[Event "Prague Festival Futures 2024"]
[Site "Prague"]
[Date "2024.03.04"]
[Round "6.2"]
[White "Brzezina, Pawel"]
[Black "Mrozowski, Nikodem"]
[Result "1-0"]
[ECO "D85"]
[WhiteElo "1834"]
[BlackElo "1527"]
[Annotator "NA RC"]
[PlyCount "69"]
[EventDate "2024.02.22"]
[EventType "tourn"]
[EventCountry "CZE"]
[SourceTitle "playchess.com"]
[Source "ChessBase"]
[SourceQuality "1"]
[TimeControl "40/5400+30:1800+30"]

1. d4 {[%emt 0:00:33]} Nf6 {[%emt 0:00:05]} 2. c4 {[%emt 0:00:48]} g6 {[%emt 0:00:13]} 3. Nc3 {[%emt 0:00:53]} d5 {[%emt 0:00:08]} 4. cxd5 {[%emt 0:00:41]} Nxd5 {[%emt 0:00:34]} 5. Bd2 {[%emt 0:00:53]} Bg7 {[%emt 0:04:36]} 6. e4 {[%emt 0:01:18]} Nxc3 {[%emt 0:00:11]} 7. Bxc3 {[%emt 0:00:09]} c5 {[%emt 0:02:44]} 8. d5 {[%emt 0:02:35]} Bxc3+ {[%emt 0:03:31]} 9. bxc3 {[%emt 0:00:11]} Qa5 {[%emt 0:00:23]} 10. Qd2 {[%emt 0:02:22]} b5 {[%emt 0:04:05]} 11. Nf3 {[%emt 0:04:51]} O-O {[%emt 0:02:09]} 12. h4 {[%emt 0:11:59]} h5 {[%emt 0:03:40]} 13. Bd3 {[%emt 0:01:54]} c4 {[%emt 0:02:17]} 14. Bc2 {[%emt 0:00:10]} Na6 {[%emt 0:02:26]} 15. O-O {[%emt 0:02:41]} Nc5 {[%emt 0:01:20]} 16. Qh6 {[%emt 0:06:06]} f6 {[%emt 0:30:07]} 17. Qxg6+ {[%emt 0:00:09]} Kh8 {[%emt 0:00:05]} 18. e5 {[%emt 0:20:35]} Nd3 {[%emt 0:00:21]} 19. exf6 {[%emt 0:02:51]} exf6 {[%emt 0:01:30]} 20. Bxd3 {[%emt 0:01:53]} cxd3 {[%emt 0:00:06]} 21. Qxh5+ {[%emt 0:00:06]} Kg7 {[%emt 0:00:11]} 22. Rae1 {[%emt 0:01:54]} Qd8 {[%emt 0:01:20]} 23. Nd4 {[%emt 0:04:22]} Rh8 {[%emt 0:01:06]} 24. Qf3 {[%emt 0:01:56]} Rxh4 {[%emt 0:00:49]} 25. d6 {[%emt 0:01:43]} Qxd6 {[%emt 0:04:08]} 26. g3 {[%emt 0:00:40]} Rxd4 {[%emt 0:00:14]} 27. cxd4 {[%emt 0:00:08]} Rb8 {[%emt 0:00:19]} 28. Re3 {[%emt 0:04:34]} Bb7 {[%emt 0:08:09]} 29. Qg4+ {[%emt 0:00:08]} Kf7 {[%emt 0:00:11]} 30. Qh5+ {[%emt 0:00:08]} Kg7 {[%emt 0:00:11]} 31. Rfe1 {[%emt 0:00:06]} Bd5 {[%emt 0:20:12]} 32. Re7+ {[%emt 0:00:09]} Qxe7 {[%emt 0:00:14]} 33. Rxe7+ {[%emt 0:00:07]} Kf8 {[%emt 0:00:07]} 34. Qh7 {[%emt 0:00:12]} d2 {[%emt 0:02:48]} 35. Qg7# {[%emt 0:00:05]} 1-0

[Event "Prague Festival Futures 2024"]
[Site "Prague"]
[Date "2024.03.04"]
[Round "6.3"]
[White "Andre, Tomas"]
[Black "Aansh Nandan Nerurkar"]
[Result "0-1"]
[ECO "B76"]
[WhiteElo "1829"]
[BlackElo "1891"]
[Annotator "NA RC"]
[PlyCount "106"]
[EventDate "2024.02.22"]
[EventType "tourn"]
[EventCountry "CZE"]
[SourceTitle "playchess.com"]
[Source "ChessBase"]
[SourceQuality "1"]
[TimeControl "40/5400+30:1800+30"]

1. e4 {[%emt 0:00:22]} c5 {[%emt 0:00:05]} 2. Nf3 {[%emt 0:00:49]} d6 {[%emt 0:00:07]} 3. d4 {[%emt 0:00:40]} cxd4 {[%emt 0:00:07]} 4. Nxd4 {[%emt 0:00:38]} Nf6 {[%emt 0:00:08]} 5. Nc3 {[%emt 0:00:49]} g6 {[%emt 0:00:07]} 6. Be3 {[%emt 0:00:50]} Bg7 {[%emt 0:00:04]} 7. f3 {[%emt 0:01:07]} O-O {[%emt 0:00:07]} 8. Qd2 {[%emt 0:00:58]} Nc6 {[%emt 0:00:05]} 9. O-O-O {[%emt 0:01:17]} Nxd4 {[%emt 0:00:07]} 10. Bxd4 {[%emt 0:00:46]} Be6 {[%emt 0:00:18]} 11. Kb1 {[%emt 0:02:29]} Qc7 {[%emt 0:00:12]} 12. h4 {[%emt 0:03:11]} Rfc8 {[%emt 0:00:11]} 13. h5 {[%emt 0:01:43]} Qa5 {[%emt 0:00:17]} 14. hxg6 {[%emt 0:01:36]} fxg6 {[%emt 0:00:10]} 15. a3 {[%emt 0:01:50]} Bf7 {[%emt 0:00:33]} 16. Bd3 {[%emt 0:15:28]} Rab8 {[%emt 0:03:08]} 17. Ne2 {[%emt 0:46:46]} Qxd2 {[%emt 0:01:08]} 18. Rxd2 {[%emt 0:00:09]} a6 {[%emt 0:01:17]} 19. g4 {[%emt 0:02:35]} e5 {[%emt 0:04:10]} 20. Bc3 {[%emt 0:01:33]} h5 {[%emt 0:08:36]} 21. g5 {[%emt 0:03:11]} Nd7 {[%emt 0:03:47]} 22. Ng3 {[%emt 0:04:17]} Bf8 {[%emt 0:01:13]} 23. Rdd1 {[%emt 0:02:58]} Be7 {[%emt 0:01:07]} 24. Bd2 {[%emt 0:00:59]} Nc5 {[%emt 0:06:35]} 25. Be3 {[%emt 0:04:05]} Nxd3 {[%emt 0:02:12]} 26. Rxd3 {[%emt 0:00:21]} Bc4 {[%emt 0:00:28]} 27. Rd2 {[%emt 0:00:35]} Rf8 {[%emt 0:00:11]} 28. Rf2 {[%emt 0:00:46]} Rf7 {[%emt 0:02:08]} 29. Nf1 {[%emt 0:00:32]} b5 {[%emt 0:02:53]} 30. Nd2 {[%emt 0:01:05]} Be6 {[%emt 0:00:06]} 31. b4 {[%emt 0:00:39]} Rbf8 {[%emt 0:01:12]} 32. Rhf1 {[%emt 0:00:46]} d5 {[%emt 0:00:32]} 33. exd5 {[%emt 0:00:30]} Bxd5 {[%emt 0:00:01]} 34. c3 {[%emt 0:00:38]} Rf5 {[%emt 0:00:08]} 35. f4 {[%emt 0:00:30]} exf4 {[%emt 0:00:29]} 36. Rxf4 {[%emt 0:00:08]} Rxf4 {[%emt 0:00:36]} 37. Rxf4 {[%emt 0:00:02]} Rxf4 {[%emt 0:00:52]} 38. Bxf4 {[%emt 0:00:02]} Kf7 {[%emt 0:00:08]} 39. Nf1 {[%emt 0:00:57]} Ke6 {[%emt 0:00:11]} 40. Ne3 {[%emt 0:00:33]} h4 {[%emt 0:00:20]} 41. Kc2 {[%emt 0:31:05]} h3 {[%emt 0:32:10]} 42. Kd3 {[%emt 0:00:00]} Bxg5 {[%emt 0:00:00]} 43. Bh2 {[%emt 0:00:00]} Bg2 {[%emt 0:00:00]} 44. Ke2 {[%emt 0:00:00]} Bf6 {[%emt 0:00:00]} 45. c4 {[%emt 0:00:00]} Bb2 {[%emt 0:00:00]} 46. cxb5 {[%emt 0:00:00]} axb5 {[%emt 0:00:00]} 47. Kf2 {[%emt 0:00:00]} Bxa3 {[%emt 0:00:00]} 48. Nxg2 {[%emt 0:00:00]} hxg2 {[%emt 0:00:00]} 49. Kxg2 {[%emt 0:00:00]} Bxb4 {[%emt 0:00:00]} 50. Kf3 {[%emt 0:00:00]} Kd5 {[%emt 0:00:00]} 51. Kg4 {[%emt 0:00:00]} Bd2 {[%emt 0:00:00]} 52. Bg3 {[%emt 0:00:00]} b4 {[%emt 0:00:00]} 53. Bh4 {[%emt 0:00:00]} g5 {[%emt 0:00:00]} 0-1